[Event "*** Titled Tuesday Blitz"]
[Site "Chess.com"]
[Date "2021.04.20"]
[Round "2"]
[White "MPGM"]
[Black "Igor_Lysyj"]
[Result "1/2-1/2"]
[WhiteElo "2522"]
[BlackElo "2769"]
[TimeControl "180+1"]
[EndTime "10:18:37 PDT"]
[Termination "Game drawn by repetition"]

1. c4 {[%clk 0:03:00.9]} 1... b6 {[%clk 0:02:54.3]} 2. Nf3 {[%clk 0:02:58.5]}
2... Bb7 {[%clk 0:02:53.7]} 3. g3 {[%clk 0:02:59.4]} 3... Nf6 {[%clk 0:02:51.1]}
4. Bg2 {[%clk 0:02:59.1]} 4... c5 {[%clk 0:02:50.4]} 5. O-O {[%clk 0:02:58.2]}
5... g6 {[%clk 0:02:50.1]} 6. d4 {[%clk 0:02:50.8]} 6... cxd4 {[%clk 0:02:49.4]}
7. Qxd4 {[%clk 0:02:46.7]} 7... Bg7 {[%clk 0:02:48.7]} 8. Nc3 {[%clk 0:02:45.4]}
8... d6 {[%clk 0:02:38.1]} 9. Rd1 {[%clk 0:02:39.7]} 9... Nbd7 {[%clk
0:02:37.1]} 10. b3 {[%clk 0:02:18.5]} 10... O-O {[%clk 0:02:35]} 11. Bb2 {[%clk
0:02:17.8]} 11... a6 {[%clk 0:02:30]} 12. Nd5 {[%clk 0:02:00]} 12... Ne8 {[%clk
0:02:06.9]} 13. Qd2 {[%clk 0:01:59.6]} 13... Bxb2 {[%clk 0:02:04.8]} 14. Qxb2
{[%clk 0:01:59.3]} 14... e6 {[%clk 0:02:03.6]} 15. Ne3 {[%clk 0:01:35.8]} 15...
Qf6 {[%clk 0:01:58.2]} 16. Qd2 {[%clk 0:01:26.7]} 16... Qe7 {[%clk 0:01:49.6]}
17. h4 {[%clk 0:01:15.3]} 17... Ndf6 {[%clk 0:01:48.8]} 18. Rac1 {[%clk
0:01:06.7]} 18... Qc7 {[%clk 0:01:43.3]} 19. Qd4 {[%clk 0:00:57.9]} 19... Qc5
{[%clk 0:01:35]} 20. Qxc5 {[%clk 0:00:50.3]} 20... bxc5 {[%clk 0:01:34.5]} 21.
g4 {[%clk 0:00:40.2]} 21... h6 {[%clk 0:01:22.2]} 22. g5 {[%clk 0:00:38.9]}
22... hxg5 {[%clk 0:01:18.4]} 23. hxg5 {[%clk 0:00:39.8]} 23... Nh7 {[%clk
0:01:16.7]} 24. Ng4 {[%clk 0:00:20.5]} 24... Rb8 {[%clk 0:00:51.1]} 25. Ngh2
{[%clk 0:00:14.4]} 25... Be4 {[%clk 0:00:43.4]} 26. Rc3 {[%clk 0:00:13.3]} 26...
Rb6 {[%clk 0:00:40.7]} 27. Re3 {[%clk 0:00:12.5]} 27... Ba8 {[%clk 0:00:38.5]}
28. Red3 {[%clk 0:00:08.2]} 28... Kg7 {[%clk 0:00:35.8]} 29. Bh3 {[%clk
0:00:04]} 29... Rh8 {[%clk 0:00:34.4]} 30. Bg4 {[%clk 0:00:03.4]} 30... Nf8
{[%clk 0:00:31]} 31. Nf1 {[%clk 0:00:02.3]} 31... Nd7 {[%clk 0:00:29.8]} 32.
N1h2 {[%clk 0:00:01.4]} 32... Bc6 {[%clk 0:00:26.7]} 33. Re3 {[%clk 0:00:01.6]}
33... a5 {[%clk 0:00:25.5]} 34. Rd2 {[%clk 0:00:02]} 34... a4 {[%clk 0:00:24.5]}
35. Rdd3 {[%clk 0:00:02.5]} 35... Ra6 {[%clk 0:00:22.7]} 36. Rd1 {[%clk
0:00:02.6]} 36... axb3 {[%clk 0:00:21.2]} 37. axb3 {[%clk 0:00:03.5]} 37... Ra2
{[%clk 0:00:20.9]} 38. Re1 {[%clk 0:00:03.5]} 38... Rb2 {[%clk 0:00:20]} 39. Rd3
{[%clk 0:00:03.8]} 39... Be4 {[%clk 0:00:16.5]} 40. Re3 {[%clk 0:00:04.3]} 40...
Bc2 {[%clk 0:00:16.3]} 41. Nd2 {[%clk 0:00:02.9]} 41... Bf5 {[%clk 0:00:16]} 42.
Bxf5 {[%clk 0:00:02.6]} 42... gxf5 {[%clk 0:00:15.5]} 43. Ndf3 {[%clk
0:00:03.3]} 43... Rh3 {[%clk 0:00:14.5]} 44. Rd3 {[%clk 0:00:03.7]} 44... Nb8
{[%clk 0:00:13.4]} 45. Kg2 {[%clk 0:00:04]} 45... Rh5 {[%clk 0:00:12.4]} 46. Kf1
{[%clk 0:00:03.9]} 46... Nc6 {[%clk 0:00:12.2]} 47. Ra1 {[%clk 0:00:03.7]} 47...
Nb4 {[%clk 0:00:12]} 48. Rc3 {[%clk 0:00:04.1]} 48... Nc7 {[%clk 0:00:09.4]} 49.
Ra7 {[%clk 0:00:04.2]} 49... Nba6 {[%clk 0:00:08.8]} 50. Re3 {[%clk 0:00:04]}
50... Rb1+ {[%clk 0:00:08.5]} 51. Kg2 {[%clk 0:00:03.7]} 51... f4 {[%clk
0:00:07.5]} 52. Re4 {[%clk 0:00:03.5]} 52... Rxb3 {[%clk 0:00:06.7]} 53. Rxf4
{[%clk 0:00:03.6]} 53... Rb2 {[%clk 0:00:06.6]} 54. e3 {[%clk 0:00:03.2]} 54...
Rb8 {[%clk 0:00:05.9]} 55. Nf1 {[%clk 0:00:03.3]} 55... Rbh8 {[%clk 0:00:05.5]}
56. Ng3 {[%clk 0:00:03.2]} 56... Rh3 {[%clk 0:00:04.7]} 57. Rg4 {[%clk
0:00:02.7]} 57... Kg6 {[%clk 0:00:04.6]} 58. Rf4 {[%clk 0:00:02.8]} 58... Kg7
{[%clk 0:00:04.6]} 59. Rg4 {[%clk 0:00:03.3]} 59... Kg6 {[%clk 0:00:04.4]} 60.
Rf4 {[%clk 0:00:03.9]} 60... R8h7 {[%clk 0:00:04.6]} 61. Rf6+ {[%clk 0:00:03.5]}
61... Kg7 {[%clk 0:00:04.3]} 62. Rf4 {[%clk 0:00:04]} 62... Rh8 {[%clk
0:00:04.5]} 1/2-1/2

[Event "*** Titled Tuesday Blitz"]
[Site "Chess.com"]
[Date "2021.04.20"]
[Round "2"]
[White "attack2mateU"]
[Black "Keks2017"]
[Result "1-0"]
[WhiteElo "2707"]
[BlackElo "2477"]
[TimeControl "180+1"]
[EndTime "10:18:37 PDT"]
[Termination "attack2mateU won by checkmate"]

1. e4 {[%clk 0:03:00.9]} 1... d6 {[%clk 0:02:59.4]} 2. d4 {[%clk 0:03:00.6]}
2... Nf6 {[%clk 0:02:59]} 3. Nc3 {[%clk 0:03:00.5]} 3... g6 {[%clk 0:02:59]} 4.
Be3 {[%clk 0:02:59.2]} 4... c6 {[%clk 0:02:58.8]} 5. h3 {[%clk 0:02:49.1]} 5...
Nbd7 {[%clk 0:02:55.6]} 6. g4 {[%clk 0:02:24.5]} 6... b5 {[%clk 0:02:52.5]} 7.
a3 {[%clk 0:02:21.5]} 7... a6 {[%clk 0:02:51.1]} 8. g5 {[%clk 0:02:20.7]} 8...
Nh5 {[%clk 0:02:49.5]} 9. Be2 {[%clk 0:02:20.5]} 9... Ng7 {[%clk 0:02:48.3]} 10.
h4 {[%clk 0:02:15.4]} 10... e5 {[%clk 0:02:45]} 11. h5 {[%clk 0:01:56]} 11...
Bb7 {[%clk 0:02:38.9]} 12. hxg6 {[%clk 0:01:44.7]} 12... fxg6 {[%clk 0:02:38.5]}
13. Nf3 {[%clk 0:01:45.2]} 13... Be7 {[%clk 0:02:33.3]} 14. Qd2 {[%clk 0:01:22]}
14... Qc7 {[%clk 0:02:32.9]} 15. O-O-O {[%clk 0:01:19.7]} 15... O-O-O {[%clk
0:02:32.7]} 16. d5 {[%clk 0:00:55.9]} 16... c5 {[%clk 0:02:25.2]} 17. Na2 {[%clk
0:00:56.5]} 17... Nb6 {[%clk 0:02:04]} 18. Kb1 {[%clk 0:00:54.1]} 18... Rdf8
{[%clk 0:02:03.2]} 19. Ne1 {[%clk 0:00:38.1]} 19... Kb8 {[%clk 0:02:00.8]} 20.
Ng2 {[%clk 0:00:38.3]} 20... Nd7 {[%clk 0:01:48.2]} 21. Rh3 {[%clk 0:00:34.8]}
21... Rf7 {[%clk 0:01:45.4]} 22. Rdh1 {[%clk 0:00:34.8]} 22... Nf8 {[%clk
0:01:44.7]} 23. f4 {[%clk 0:00:34.2]} 23... exf4 {[%clk 0:01:44]} 24. Bxf4
{[%clk 0:00:34.5]} 24... Ka8 {[%clk 0:01:35.9]} 25. c4 {[%clk 0:00:32]} 25...
bxc4 {[%clk 0:01:34.1]} 26. Bxc4 {[%clk 0:00:32.9]} 26... Nh5 {[%clk 0:01:30]}
27. Be3 {[%clk 0:00:21.4]} 27... Bc8 {[%clk 0:01:28.8]} 28. R3h2 {[%clk
0:00:21]} 28... Nd7 {[%clk 0:01:26]} 29. Nf4 {[%clk 0:00:20.7]} 29... Ne5 {[%clk
0:01:25.1]} 30. Be2 {[%clk 0:00:16.7]} 30... Ng3 {[%clk 0:01:21.7]} 31. Ne6
{[%clk 0:00:11.3]} 31... Qb6 {[%clk 0:01:11.3]} 32. Rg1 {[%clk 0:00:08.8]} 32...
Nxe2 {[%clk 0:01:10.8]} 33. Qxe2 {[%clk 0:00:09]} 33... Bxe6 {[%clk 0:00:42.8]}
34. dxe6 {[%clk 0:00:09.9]} 34... Rf3 {[%clk 0:00:41.9]} 35. Rf2 {[%clk
0:00:09.5]} 35... Rxf2 {[%clk 0:00:41.3]} 36. Bxf2 {[%clk 0:00:09.2]} 36... Qb7
{[%clk 0:00:39.8]} 37. Nc3 {[%clk 0:00:09]} 37... Rb8 {[%clk 0:00:34.2]} 38. Nd5
{[%clk 0:00:09.5]} 38... Nd3 {[%clk 0:00:24.9]} 39. Ka1 {[%clk 0:00:07.3]} 39...
Nxf2 {[%clk 0:00:15.3]} 40. Qxf2 {[%clk 0:00:08.2]} 40... Rf8 {[%clk 0:00:14.1]}
41. Qe2 {[%clk 0:00:07.4]} 41... Bd8 {[%clk 0:00:14.1]} 42. Rf1 {[%clk
0:00:05.2]} 42... Re8 {[%clk 0:00:14.1]} 43. Rf7 {[%clk 0:00:04.9]} 43... Qc6
{[%clk 0:00:13.4]} 44. e7 {[%clk 0:00:03.9]} 44... Ba5 {[%clk 0:00:12.9]} 45.
Qc4 {[%clk 0:00:02.8]} 45... Kb7 {[%clk 0:00:13]} 46. Rf8 {[%clk 0:00:02]} 46...
Qd7 {[%clk 0:00:08.1]} 47. Nf6 {[%clk 0:00:01.9]} 47... Qxe7 {[%clk 0:00:07.7]}
48. Rxe8 {[%clk 0:00:02]} 48... Qc7 {[%clk 0:00:07.7]} 49. Qd5+ {[%clk
0:00:02.5]} 49... Kb6 {[%clk 0:00:07.3]} 50. Ra8 {[%clk 0:00:02.6]} 50... c4
{[%clk 0:00:06.9]} 51. Qe6 {[%clk 0:00:02.1]} 51... Kb5 {[%clk 0:00:06.9]} 52.
Nd5 {[%clk 0:00:02.3]} 52... Qc5 {[%clk 0:00:06.3]} 53. Rb8+ {[%clk 0:00:02.8]}
53... Ka4 {[%clk 0:00:06.4]} 54. Qd7+ {[%clk 0:00:03.5]} 54... Qb5 {[%clk
0:00:05.2]} 55. Rxb5 {[%clk 0:00:04.1]} 55... axb5 {[%clk 0:00:05.5]} 56. Qc6
{[%clk 0:00:04.8]} 56... Kb3 {[%clk 0:00:04]} 57. Qxb5+ {[%clk 0:00:05]} 57...
Kc2 {[%clk 0:00:04.9]} 58. Qxa5 {[%clk 0:00:05.6]} 58... Kd3 {[%clk 0:00:05.2]}
59. Qc3+ {[%clk 0:00:06.5]} 59... Kxe4 {[%clk 0:00:05.2]} 60. Qxc4+ {[%clk
0:00:06.9]} 60... Kf5 {[%clk 0:00:05.1]} 61. a4 {[%clk 0:00:07.1]} 61... Kxg5
{[%clk 0:00:05.1]} 62. a5 {[%clk 0:00:08]} 62... h5 {[%clk 0:00:05.6]} 63. a6
{[%clk 0:00:08.9]} 63... h4 {[%clk 0:00:06.1]} 64. a7 {[%clk 0:00:09.8]} 64...
h3 {[%clk 0:00:06.5]} 65. a8=Q {[%clk 0:00:10.7]} 65... h2 {[%clk 0:00:06.8]}
66. Qd8+ {[%clk 0:00:11.6]} 66... Kf5 {[%clk 0:00:06.5]} 67. Qf4+ {[%clk
0:00:12.2]} 67... Ke6 {[%clk 0:00:06.3]} 68. Nc7# {[%clk 0:00:12.8]} 1-0

[Event "*** Titled Tuesday Blitz"]
[Site "Chess.com"]
[Date "2021.04.20"]
[Round "2"]
[White "lucachess49"]
[Black "chesshermar"]
[Result "1-0"]
[WhiteElo "2440"]
[BlackElo "2204"]
[TimeControl "180+1"]
[EndTime "10:18:38 PDT"]
[Termination "lucachess49 won by checkmate"]

1. d4 {[%clk 0:03:00.9]} 1... Nf6 {[%clk 0:02:56.5]} 2. c4 {[%clk 0:03:01.2]}
2... g6 {[%clk 0:02:55.8]} 3. f3 {[%clk 0:03:01.5]} 3... d6 {[%clk 0:02:54.3]}
4. e4 {[%clk 0:03:01.4]} 4... Bg7 {[%clk 0:02:54.4]} 5. Nc3 {[%clk 0:03:02]}
5... O-O {[%clk 0:02:41.8]} 6. Nge2 {[%clk 0:03:01.2]} 6... c5 {[%clk
0:02:42.1]} 7. d5 {[%clk 0:03:00.6]} 7... e6 {[%clk 0:02:41.7]} 8. Be3 {[%clk
0:02:49.7]} 8... exd5 {[%clk 0:02:41.1]} 9. cxd5 {[%clk 0:02:50.6]} 9... Re8
{[%clk 0:02:37.1]} 10. Ng3 {[%clk 0:02:45.9]} 10... a6 {[%clk 0:02:34]} 11. a4
{[%clk 0:02:43.6]} 11... Qa5 {[%clk 0:02:32.3]} 12. Be2 {[%clk 0:02:34.1]} 12...
h5 {[%clk 0:02:30.3]} 13. O-O {[%clk 0:02:31.3]} 13... h4 {[%clk 0:02:28.7]} 14.
Nh1 {[%clk 0:02:31.8]} 14... Nh5 {[%clk 0:02:23.6]} 15. Qd2 {[%clk 0:02:16.1]}
15... f5 {[%clk 0:01:52.6]} 16. Nf2 {[%clk 0:01:54.5]} 16... Qd8 {[%clk
0:01:22.5]} 17. f4 {[%clk 0:00:55.6]} 17... Nf6 {[%clk 0:00:55.7]} 18. Bf3
{[%clk 0:00:55.2]} 18... Nbd7 {[%clk 0:00:40.8]} 19. Rae1 {[%clk 0:00:38.2]}
19... Rb8 {[%clk 0:00:40.6]} 20. Qd3 {[%clk 0:00:32.1]} 20... Nf8 {[%clk
0:00:31.9]} 21. e5 {[%clk 0:00:17.4]} 21... dxe5 {[%clk 0:00:24.9]} 22. fxe5
{[%clk 0:00:18.3]} 22... Rxe5 {[%clk 0:00:25.3]} 23. Bxc5 {[%clk 0:00:18.9]}
23... Rxe1 {[%clk 0:00:23.1]} 24. Rxe1 {[%clk 0:00:19.8]} 24... b6 {[%clk
0:00:19.8]} 25. Bd4 {[%clk 0:00:18.5]} 25... Bb7 {[%clk 0:00:17.5]} 26. Be5
{[%clk 0:00:18.4]} 26... Rc8 {[%clk 0:00:16.4]} 27. Qd4 {[%clk 0:00:18.8]} 27...
N8d7 {[%clk 0:00:08.2]} 28. Qxh4 {[%clk 0:00:09.8]} 28... Nxe5 {[%clk 0:00:08]}
29. Rxe5 {[%clk 0:00:10.7]} 29... Nxd5 {[%clk 0:00:06.7]} 30. Qxd8+ {[%clk
0:00:09.3]} 30... Rxd8 {[%clk 0:00:05.1]} 31. Rxd5 {[%clk 0:00:09.5]} 31... Bxd5
{[%clk 0:00:04.8]} 32. Bxd5+ {[%clk 0:00:10.3]} 32... Kf8 {[%clk 0:00:04.2]} 33.
Bf3 {[%clk 0:00:08.3]} 33... Rd2 {[%clk 0:00:03.6]} 34. Nfd1 {[%clk 0:00:07.1]}
34... Bxc3 {[%clk 0:00:03.8]} 35. Nxc3 {[%clk 0:00:07]} 35... Rxb2 {[%clk
0:00:03.9]} 36. Nd5 {[%clk 0:00:07.1]} 36... b5 {[%clk 0:00:03.4]} 37. axb5
{[%clk 0:00:07.6]} 37... axb5 {[%clk 0:00:04.3]} 38. h4 {[%clk 0:00:07.8]} 38...
b4 {[%clk 0:00:04.8]} 39. Ne3 {[%clk 0:00:06.1]} 39... b3 {[%clk 0:00:04.8]} 40.
Bd5 {[%clk 0:00:06.4]} 40... Rb1+ {[%clk 0:00:05]} 41. Kf2 {[%clk 0:00:05.6]}
41... b2 {[%clk 0:00:05.4]} 42. Nc4 {[%clk 0:00:05.6]} 42... Rc1 {[%clk
0:00:04.3]} 43. Nxb2 {[%clk 0:00:04.7]} 43... Rc2+ {[%clk 0:00:05.1]} 44. Kf3
{[%clk 0:00:05.3]} 44... Rxb2 {[%clk 0:00:06]} 45. Kf4 {[%clk 0:00:05.7]} 45...
Kg7 {[%clk 0:00:06.9]} 46. Kg5 {[%clk 0:00:06]} 46... Rb5 {[%clk 0:00:06.8]} 47.
Bf3 {[%clk 0:00:06.4]} 47... Rb4 {[%clk 0:00:06.9]} 48. h5 {[%clk 0:00:06.7]}
48... gxh5 {[%clk 0:00:06.5]} 49. Kxf5 {[%clk 0:00:07.1]} 49... h4 {[%clk
0:00:06.7]} 50. Kg5 {[%clk 0:00:07.2]} 50... Kh7 {[%clk 0:00:06.2]} 51. Kh5
{[%clk 0:00:06.7]} 51... Kg7 {[%clk 0:00:05.7]} 52. Kg5 {[%clk 0:00:07.2]} 52...
Kf7 {[%clk 0:00:06.1]} 53. Kf5 {[%clk 0:00:06.7]} 53... Rb5+ {[%clk 0:00:05.3]}
54. Kg4 {[%clk 0:00:06.8]} 54... Rb4+ {[%clk 0:00:05.5]} 55. Kf5 {[%clk
0:00:07.4]} 55... Rb3 {[%clk 0:00:03.2]} 56. Bd5+ {[%clk 0:00:06.8]} 56... Kg7
{[%clk 0:00:03.8]} 57. Bxb3 {[%clk 0:00:07.7]} 57... h3 {[%clk 0:00:04.6]} 58.
g4 {[%clk 0:00:06.1]} 58... h2 {[%clk 0:00:05.5]} 59. Bd5 {[%clk 0:00:06.5]}
59... Kh6 {[%clk 0:00:05.4]} 60. g5+ {[%clk 0:00:06.8]} 60... Kg7 {[%clk
0:00:06.3]} 61. g6 {[%clk 0:00:07.1]} 61... Kh8 {[%clk 0:00:06.4]} 62. Kf6
{[%clk 0:00:07.3]} 62... h1=B {[%clk 0:00:04.7]} 63. g7+ {[%clk 0:00:07.4]}
63... Kh7 {[%clk 0:00:04.8]} 64. Bxh1 {[%clk 0:00:08]} 64... Kh6 {[%clk
0:00:05.7]} 65. g8=Q {[%clk 0:00:06.9]} 65... Kh5 {[%clk 0:00:06.6]} 66. Qg5#
{[%clk 0:00:07.2]} 1-0

[Event "*** Titled Tuesday Blitz"]
[Site "Chess.com"]
[Date "2021.04.20"]
[Round "2"]
[White "BanjoKazooieN64"]
[Black "Airquake"]
[Result "1-0"]
[WhiteElo "2441"]
[BlackElo "2650"]
[TimeControl "180+1"]
[EndTime "10:18:49 PDT"]
[Termination "BanjoKazooieN64 won on time"]

1. e4 {[%clk 0:03:00.9]} 1... c5 {[%clk 0:02:59.6]} 2. Nc3 {[%clk 0:03:00.4]}
2... d6 {[%clk 0:03:00.5]} 3. f4 {[%clk 0:03:00]} 3... Nc6 {[%clk 0:03:00.5]} 4.
Nf3 {[%clk 0:03:00]} 4... g6 {[%clk 0:03:00.5]} 5. Bc4 {[%clk 0:03:00]} 5... Bg7
{[%clk 0:02:58.9]} 6. O-O {[%clk 0:03:00]} 6... e6 {[%clk 0:02:53.1]} 7. d3
{[%clk 0:03:00.2]} 7... Nge7 {[%clk 0:02:50.1]} 8. Qe1 {[%clk 0:03:00.2]} 8...
O-O {[%clk 0:02:47.9]} 9. f5 {[%clk 0:03:00.5]} 9... d5 {[%clk 0:02:45.8]} 10.
Bb3 {[%clk 0:02:59.7]} 10... dxe4 {[%clk 0:02:44.9]} 11. f6 {[%clk 0:02:52.2]}
11... exf3 {[%clk 0:02:32.2]} 12. fxg7 {[%clk 0:02:40.3]} 12... Kxg7 {[%clk
0:02:27.8]} 13. Rxf3 {[%clk 0:02:39]} 13... Nf5 {[%clk 0:02:19.9]} 14. Ne4
{[%clk 0:02:36.4]} 14... Ncd4 {[%clk 0:02:11.7]} 15. Rh3 {[%clk 0:02:33.5]}
15... Nxb3 {[%clk 0:01:27.8]} 16. axb3 {[%clk 0:02:31.4]} 16... h5 {[%clk
0:01:28.3]} 17. Bg5 {[%clk 0:02:25.1]} 17... f6 {[%clk 0:01:27.5]} 18. Bd2
{[%clk 0:02:08.5]} 18... b6 {[%clk 0:01:21.9]} 19. b4 {[%clk 0:02:06.4]} 19...
cxb4 {[%clk 0:01:11.1]} 20. Bxb4 {[%clk 0:02:06.3]} 20... Rf7 {[%clk 0:01:11.3]}
21. Bc3 {[%clk 0:01:57]} 21... e5 {[%clk 0:01:10.2]} 22. Rf3 {[%clk 0:01:43.9]}
22... Bb7 {[%clk 0:01:03.1]} 23. Qf2 {[%clk 0:01:05]} 23... Nd4 {[%clk
0:00:46.4]} 24. Rg3 {[%clk 0:00:42.4]} 24... Bxe4 {[%clk 0:00:42.3]} 25. dxe4
{[%clk 0:00:42.3]} 25... Rc8 {[%clk 0:00:32.5]} 26. Rd1 {[%clk 0:00:40.9]} 26...
Rd7 {[%clk 0:00:32.5]} 27. Rgd3 {[%clk 0:00:38.6]} 27... Rcc7 {[%clk 0:00:22.8]}
28. Bxd4 {[%clk 0:00:34.8]} 28... exd4 {[%clk 0:00:22]} 29. Rxd4 {[%clk
0:00:35.7]} 29... Rxd4 {[%clk 0:00:20.1]} 30. Rxd4 {[%clk 0:00:36.6]} 30... Qe7
{[%clk 0:00:20]} 31. c3 {[%clk 0:00:35]} 31... Qe5 {[%clk 0:00:18.7]} 32. Qd2
{[%clk 0:00:33.1]} 32... Re7 {[%clk 0:00:18.8]} 33. h3 {[%clk 0:00:32.1]} 33...
h4 {[%clk 0:00:18.5]} 34. Qf2 {[%clk 0:00:29.7]} 34... g5 {[%clk 0:00:18.7]} 35.
Qf3 {[%clk 0:00:28.2]} 35... Qb5 {[%clk 0:00:17.8]} 36. Rd6 {[%clk 0:00:22.1]}
36... Qc5+ {[%clk 0:00:13.7]} 37. Rd4 {[%clk 0:00:20.8]} 37... a5 {[%clk
0:00:14.1]} 38. Kh1 {[%clk 0:00:20.6]} 38... b5 {[%clk 0:00:13.4]} 39. Rd5
{[%clk 0:00:20.2]} 39... Qc4 {[%clk 0:00:12.6]} 40. Rd4 {[%clk 0:00:16.6]} 40...
Qc6 {[%clk 0:00:11.1]} 41. Qe2 {[%clk 0:00:15.8]} 41... a4 {[%clk 0:00:10.9]}
42. Qd3 {[%clk 0:00:15.8]} 42... Qe6 {[%clk 0:00:07.9]} 43. Rd5 {[%clk
0:00:14.8]} 43... Qxe4 {[%clk 0:00:06.4]} 44. Qxe4 {[%clk 0:00:15.1]} 44... Rxe4
{[%clk 0:00:07.3]} 45. Rxb5 {[%clk 0:00:15.7]} 45... Re1+ {[%clk 0:00:06.4]} 46.
Kh2 {[%clk 0:00:15.5]} 46... Re2 {[%clk 0:00:07]} 47. c4 {[%clk 0:00:15.4]}
47... Kg6 {[%clk 0:00:06.8]} 48. c5 {[%clk 0:00:15.7]} 48... Rc2 {[%clk
0:00:06.4]} 49. Kg1 {[%clk 0:00:15.8]} 49... f5 {[%clk 0:00:06.9]} 50. Rb6+
{[%clk 0:00:15.6]} 50... Kh5 {[%clk 0:00:06.7]} 51. c6 {[%clk 0:00:16]} 51... g4
{[%clk 0:00:06.8]} 52. hxg4+ {[%clk 0:00:16.5]} 52... fxg4 {[%clk 0:00:07.7]}
53. Rb5+ {[%clk 0:00:15.9]} 53... Kg6 {[%clk 0:00:07.8]} 54. Rb4 {[%clk
0:00:16.2]} 54... Kg5 {[%clk 0:00:08.2]} 55. Rb5+ {[%clk 0:00:16]} 55... Kf4
{[%clk 0:00:08.4]} 56. Rb4+ {[%clk 0:00:16.1]} 56... Kg3 {[%clk 0:00:09]} 57.
Kf1 {[%clk 0:00:16.2]} 57... Rc1+ {[%clk 0:00:08.7]} 58. Ke2 {[%clk 0:00:16.3]}
58... Rxc6 {[%clk 0:00:09.6]} 59. Rxa4 {[%clk 0:00:15.9]} 59... Re6+ {[%clk
0:00:10.2]} 60. Kf1 {[%clk 0:00:15.7]} 60... Rg6 {[%clk 0:00:11.1]} 61. Kg1
{[%clk 0:00:14.7]} 61... h3 {[%clk 0:00:09.6]} 62. Ra3+ {[%clk 0:00:14.3]} 62...
Kh4 {[%clk 0:00:09.7]} 63. gxh3 {[%clk 0:00:14.2]} 63... g3 {[%clk 0:00:09]} 64.
Kg2 {[%clk 0:00:14.2]} 64... Rb6 {[%clk 0:00:08.4]} 65. Ra4+ {[%clk 0:00:14.3]}
65... Kh5 {[%clk 0:00:08.7]} 66. b4 {[%clk 0:00:14.4]} 66... Kh4 {[%clk
0:00:07.7]} 67. b5+ {[%clk 0:00:13.6]} 67... Kh5 {[%clk 0:00:08.2]} 68. Rb4
{[%clk 0:00:14]} 68... Kg5 {[%clk 0:00:07.5]} 69. Kxg3 {[%clk 0:00:14.3]} 69...
Kf5 {[%clk 0:00:08]} 70. h4 {[%clk 0:00:14.9]} 1-0

[Event "*** Titled Tuesday Blitz"]
[Site "Chess.com"]
[Date "2021.04.20"]
[Round "2"]
[White "InvisibleWarrior2252"]
[Black "Vusatiuk_Vladimir"]
[Result "1-0"]
[WhiteElo "2501"]
[BlackElo "2306"]
[TimeControl "180+1"]
[EndTime "10:19:05 PDT"]
[Termination "InvisibleWarrior2252 won by resignation"]

1. e4 {[%clk 0:03:00.9]} 1... c5 {[%clk 0:03:00.2]} 2. Nf3 {[%clk 0:03:01.2]}
2... e6 {[%clk 0:03:00.5]} 3. d4 {[%clk 0:03:01.9]} 3... cxd4 {[%clk 0:03:01.4]}
4. Bg5 {[%clk 0:03:02.5]} 4... Qb6 {[%clk 0:02:57.2]} 5. Nbd2 {[%clk 0:03:01.4]}
5... f6 {[%clk 0:02:52.2]} 6. Bf4 {[%clk 0:03:00.5]} 6... e5 {[%clk 0:02:52.5]}
7. Bg3 {[%clk 0:03:00.8]} 7... Bb4 {[%clk 0:02:45.4]} 8. Bc4 {[%clk 0:02:59.2]}
8... Ne7 {[%clk 0:02:44.2]} 9. O-O {[%clk 0:02:57.4]} 9... Nbc6 {[%clk
0:02:44.2]} 10. a3 {[%clk 0:02:54.9]} 10... Bxd2 {[%clk 0:02:43.8]} 11. Qxd2
{[%clk 0:02:55.8]} 11... Qxb2 {[%clk 0:02:39.6]} 12. Rfb1 {[%clk 0:02:50.8]}
12... Qc3 {[%clk 0:02:39.6]} 13. Qe2 {[%clk 0:02:51.3]} 13... Na5 {[%clk
0:02:29.1]} 14. Ba2 {[%clk 0:02:48.7]} 14... d6 {[%clk 0:02:17.6]} 15. Ne1
{[%clk 0:02:46.3]} 15... h5 {[%clk 0:02:15.8]} 16. h4 {[%clk 0:02:42.2]} 16...
Bg4 {[%clk 0:02:15.5]} 17. f3 {[%clk 0:02:40.3]} 17... g6 {[%clk 0:02:03.1]} 18.
Nd3 {[%clk 0:02:37.9]} 18... Bd7 {[%clk 0:02:03.1]} 19. Be1 {[%clk 0:02:30.5]}
19... Qc7 {[%clk 0:01:56.4]} 20. Bxa5 {[%clk 0:02:30.6]} 20... Qxa5 {[%clk
0:01:57.3]} 21. Rxb7 {[%clk 0:02:31.3]} 21... Bc6 {[%clk 0:01:51.5]} 22. Rbb1
{[%clk 0:02:27.3]} 22... Kf8 {[%clk 0:01:40.9]} 23. Nb4 {[%clk 0:02:20.6]} 23...
Bb5 {[%clk 0:01:39.3]} 24. Bc4 {[%clk 0:02:20.3]} 24... a6 {[%clk 0:01:29.1]}
25. a4 {[%clk 0:02:09.6]} 25... Bxc4 {[%clk 0:01:26.5]} 26. Qxc4 {[%clk
0:02:10.5]} 26... Kg7 {[%clk 0:01:21.8]} 27. Qe6 {[%clk 0:02:03]} 27... Qc7
{[%clk 0:01:14.3]} 28. f4 {[%clk 0:01:49.3]} 28... a5 {[%clk 0:01:11.9]} 29. Nd3
{[%clk 0:01:47.7]} 29... Rab8 {[%clk 0:01:11.2]} 30. Rf1 {[%clk 0:01:38.4]}
30... Rhf8 {[%clk 0:01:04.4]} 31. Rab1 {[%clk 0:01:19.4]} 31... Rxb1 {[%clk
0:00:56]} 32. Rxb1 {[%clk 0:01:20.3]} 32... Qxc2 {[%clk 0:00:55.8]} 33. Rb7
{[%clk 0:01:14.5]} 33... Rf7 {[%clk 0:00:22.7]} 34. Rxe7 {[%clk 0:01:07.6]}
34... Rxe7 {[%clk 0:00:16.2]} 35. Qxe7+ {[%clk 0:01:08.5]} 35... Kh6 {[%clk
0:00:16.7]} 36. Qxf6 {[%clk 0:01:02.5]} 36... Kh7 {[%clk 0:00:14.7]} 37. Qf7+
{[%clk 0:00:37.4]} 37... Kh6 {[%clk 0:00:14.3]} 38. f5 {[%clk 0:00:30.1]} 38...
gxf5 {[%clk 0:00:13.9]} 39. exf5 {[%clk 0:00:29.7]} 39... Qd1+ {[%clk
0:00:14.4]} 40. Kh2 {[%clk 0:00:29.4]} 40... Qg4 {[%clk 0:00:15.1]} 41. Qf6+
{[%clk 0:00:20.9]} 41... Kh7 {[%clk 0:00:15.1]} 42. Qf7+ {[%clk 0:00:04.7]}
42... Kh6 {[%clk 0:00:15.4]} 43. Qf6+ {[%clk 0:00:05]} 43... Kh7 {[%clk
0:00:16]} 44. Qg5 {[%clk 0:00:05.7]} 44... e4 {[%clk 0:00:16.1]} 45. Nf4 {[%clk
0:00:04.8]} 45... Qxg5 {[%clk 0:00:14]} 46. hxg5 {[%clk 0:00:05.7]} 46... d3
{[%clk 0:00:14.9]} 47. Nd5 {[%clk 0:00:05.8]} 47... d2 {[%clk 0:00:11.3]} 48.
Ne3 {[%clk 0:00:06.7]} 48... d5 {[%clk 0:00:12.2]} 49. Kg1 {[%clk 0:00:07]}
49... d4 {[%clk 0:00:12.7]} 50. Nd1 {[%clk 0:00:07.6]} 50... e3 {[%clk
0:00:05.8]} 51. Kf1 {[%clk 0:00:07.4]} 51... Kg7 {[%clk 0:00:05.2]} 52. Ke2
{[%clk 0:00:07.7]} 52... h4 {[%clk 0:00:05]} 53. Kd3 {[%clk 0:00:06.7]} 53...
Kf7 {[%clk 0:00:05.6]} 54. Nb2 {[%clk 0:00:04.8]} 54... Ke7 {[%clk 0:00:02.5]}
55. Ke2 {[%clk 0:00:04.8]} 55... Kf7 {[%clk 0:00:02.5]} 56. Nd3 {[%clk
0:00:05.6]} 56... Ke7 {[%clk 0:00:03.1]} 57. Nf4 {[%clk 0:00:05.8]} 57... Kf7
{[%clk 0:00:03.1]} 58. Ne6 {[%clk 0:00:05.8]} 58... d3+ {[%clk 0:00:03.3]} 59.
Kd1 {[%clk 0:00:06.2]} 59... Ke7 {[%clk 0:00:02.5]} 60. Nf4 {[%clk 0:00:05.9]}
60... Kf7 {[%clk 0:00:01.1]} 61. Nxd3 {[%clk 0:00:05.3]} 61... Kg7 {[%clk
0:00:02]} 62. Nf4 {[%clk 0:00:05.4]} 62... Kf7 {[%clk 0:00:02.9]} 63. Nd5 {[%clk
0:00:05.7]} 63... Kg7 {[%clk 0:00:03.5]} 64. Nxe3 {[%clk 0:00:05.6]} 64... h3
{[%clk 0:00:04.4]} 65. gxh3 {[%clk 0:00:05.6]} 65... Kf7 {[%clk 0:00:05.3]} 66.
Kxd2 {[%clk 0:00:06.2]} 66... Kg7 {[%clk 0:00:06.2]} 67. Ke2 {[%clk 0:00:06.9]}
1-0